bitfinex/quotes_ETHUSD_20251023
["timestamp","ask_amount","ask_price","bid_price","bid_amount"]
[1761249638218,1.5552,3857.4,3856.2,0.4521]
[1761249638426,1.944,3858.4,3857.3,0.2159]
[1761249638596,4.44886414,3858.3,3857.4,2.59237758]
[1761249638792,1.944,3858.7,3857.8,2.59210542]
[1761249638992,1.5552,3858.9,3857.6,2.59227167]
[1761249638993,3.326,3858.6,3857.9,2.59203903]
[1761249639225,3.326,3858.5,3858.0,0.4521]
[1761249639524,1.5552,3858.4,3857.4,0.99218195]
[1761249639737,2.59180758,3858.4,3857.5,2.59234794]
[1761249639943,2.59180758,3858.4,3857.4,0.99218195]
[1761249639944,2.59181768,3858.3,3857.4,3.58458688]
[1761249640123,1.5552,3858.1,3857.5,2.59233771]
[1761249640322,4.14717953,3858.1,3857.4,0.4521]
[1761249640521,1.5552,3858.1,3857.4,0.4521]
[1761249640723,0.1296,3857.7,3857.4,0.4521]
[1761249640960,3.326,3857.6,3857.4,0.4521]
[1761249641507,3.326,3857.6,3857.4,3.04451153]
[1761249642027,3.326,3857.6,3857.5,0.4521]
[1761249642910,3.326,3857.6,3857.3,0.2159]
[1761249643116,3.326,3857.6,3856.7,0.668]
[1761249643117,1.5552,3857.5,3856.7,0.668]
[1761249643335,4.14761184,3857.5,3856.8,0.4521]
[1761249643537,1.5552,3857.3,3856.8,0.4521]
[1761249643839,3.327,3857.2,3856.8,0.4521]
[1761249644040,5.91955419,3857.2,3856.7,0.2159]
[1761249644217,1.5552,3857.1,3856.8,0.4521]
[1761249645442,4.1475059,3857.6,3856.8,3.04491449]
[1761249645745,1.5552,3857.4,3856.8,0.4521]
[1761249645935,3.327,3857.5,3856.6,0.002]
[1761249645936,1.5552,3856.7,3856.6,0.002]
[1761249646134,1.5552,3857.4,3856.6,0.002]
[1761249646333,4.14775553,3857.2,3856.6,0.4541]
[1761249646537,1.5552,3856.9,3856.6,0.4541]
[1761249646842,1.5552,3856.7,3856.6,0.4541]
[1761249647578,1.5552,3856.7,3856.6,0.002]
[1761249647984,4.14809029,3856.7,3856.6,0.002]
[1761249648576,4.8802,3856.7,3856.6,0.002]
[1761249649180,7.47309029,3856.7,3856.6,0.002]
[1761249649964,7.57209029,3856.7,3856.6,0.002]
[1761249650284,7.47309029,3856.7,3856.6,0.002]
[1761249650891,8.16463342,3856.7,3856.6,0.002]
[1761249651109,7.47309029,3856.7,3856.6,0.002]
[1761249651407,8.16463342,3856.7,3856.6,0.002]
[1761249651572,4.83963342,3856.7,3856.6,0.002]
[1761249651770,7.47109029,3856.7,3856.6,0.002]
[1761249652682,4.14809029,3856.7,3856.6,0.002]
[1761249652882,7.47109029,3856.7,3856.6,0.002]
[1761249653082,7.60069029,3856.7,3856.6,0.002]
[1761249653277,8.29223342,3856.7,3856.6,0.002]
[1761249654608,4.96923342,3856.7,3856.6,0.002]
[1761249654778,8.29123342,3856.7,3856.6,0.002]
[1761249654978,4.96923342,3856.7,3856.6,0.002]
[1761249655180,8.29023342,3856.7,3856.6,0.002]
[1761249655804,7.59869029,3856.7,3856.6,0.002]
[1761249657371,8.29023342,3856.7,3856.6,0.002]
[1761249657576,4.96923342,3856.7,3856.6,0.002]
[1761249657775,8.28923342,3856.7,3856.6,0.002]
[1761249658501,7.59769029,3856.7,3856.6,0.002]
[1761249658909,8.52185392,3856.7,3856.6,0.002]
[1761249660111,8.52725226,3856.7,3856.6,0.002]
[1761249660311,1.6848,3856.7,3856.6,0.002]
[1761249660477,0.69709797,3856.7,3856.6,0.4353]
[1761249660679,3.32,3856.7,3856.6,0.002]
[1761249661712,7.46809029,3856.7,3856.6,0.002]
[1761249662011,8.39765069,3856.7,3856.6,0.002]
[1761249662240,7.46809029,3856.7,3856.6,0.002]
[1761249662516,7.56749029,3856.7,3856.6,0.002]
[1761249663941,5.54239061,3856.7,3856.6,0.002]
[1761249664084,10.34352592,3856.7,3856.6,0.002]
[1761249664283,5.07752435,3856.7,3856.6,0.002]
[1761249664515,7.46909029,3856.7,3856.6,0.002]
[1761249665113,8.39850294,3856.7,3856.6,0.002]
[1761249665518,7.46909029,3856.7,3856.6,0.002]
[1761249666543,9.41409029,3856.7,3856.6,0.002]
[1761249667123,9.51399029,3856.7,3856.6,0.002]
[1761249667510,10.90829061,3856.7,3856.6,0.002]
[1761249667711,9.51399029,3856.7,3856.6,0.002]
[1761249668616,4.24799029,3856.7,3856.6,0.002]
[1761249669113,9.51499029,3856.7,3856.6,0.002]
[1761249670224,2.59315924,3856.3,3856.2,0.002]
[1761249670424,17.24719113,3856.3,3856.2,0.002]
[1761249670627,17.34709113,3856.3,3856.2,0.002]
[1761249670951,2.59342825,3855.9,3855.8,0.002]
[1761249671147,7.97122825,3855.9,3855.8,0.002]
[1761249671324,7.97122825,3855.9,3854.0,0.2159]
[1761249671325,2.59410505,3854.9,3854.0,0.2159]
[1761249671537,2.59361719,3855.7,3854.0,0.2159]
[1761249671538,0.1296,3854.7,3854.2,0.1296]
[1761249671728,3.321,3854.6,3854.1,0.4333]
[1761249671933,3.321,3854.6,3854.2,0.4333]
[1761249672442,3.321,3854.5,3854.2,0.4333]
[1761249673016,3.32,3854.4,3854.2,0.4333]
[1761249673240,3.32,3854.3,3854.2,0.4333]
[1761249673640,3.32,3854.3,3854.2,3.02787215]
[1761249674251,3.32,3854.3,3854.2,0.4333]
[1761249674631,0.1296,3854.7,3854.2,0.4333]
[1761249674951,3.32,3854.6,3854.2,0.4333]
[1761249675312,3.32,3854.6,3854.2,3.02786414]
[1761249675529,3.32,3854.6,3854.2,0.4333]
[1761249675726,3.32,3854.6,3854.3,0.4333]
[1761249675959,0.1296,3854.7,3854.3,3.02778858]
[1761249676265,12.17042907,3855.8,3854.5,2.59437021]
[1761249676266,3.29147888,3855.3,3854.5,2.59437021]
[1761249676445,0.69764533,3855.6,3855.3,0.2154]
[1761249676620,0.1296,3855.4,3855.3,0.2154]
[1761249677055,5.0038,3855.4,3855.3,0.2154]
[1761249677224,5.0038,3855.4,3855.3,0.6487]
[1761249677643,5.0038,3855.4,3855.3,0.2154]
[1761249677949,5.0038,3855.4,3855.3,0.6487]
[1761249678160,5.0038,3855.4,3855.3,0.2154]
[1761249678832,1.6848,3855.4,3855.3,0.6487]
[1761249679022,5.0028,3855.4,3855.3,0.6487]
[1761249679223,1.5552,3855.3,3855.0,0.4333]
[1761249679549,0.1296,3855.2,3854.7,0.1296]
[1761249679755,3.317,3855.1,3854.8,0.4333]
[1761249680154,3.317,3855.1,3854.9,0.002]
[1761249681092,4.27883372,3855.0,3854.9,0.002]
[1761249681569,4.27883372,3855.0,3854.9,0.4353]
[1761249681570,0.1296,3855.0,3854.9,0.4353]
[1761249681752,3.318,3855.0,3854.9,0.4353]
[1761249681949,0.69764533,3855.5,3854.9,0.4353]
[1761249682154,2.59388164,3855.3,3854.9,0.4353]
[1761249682676,3.317,3855.2,3854.9,0.4353]
[1761249682856,1.5552,3855.1,3854.9,0.4353]
[1761249683252,4.14923372,3855.0,3854.9,0.002]
[1761249683649,1.5552,3855.0,3854.9,0.002]
[1761249684073,4.14923372,3855.0,3854.9,0.002]
[1761249684377,1.5552,3855.0,3854.9,0.002]
[1761249684872,4.8722,3855.0,3854.9,0.002]
[1761249685176,4.8722,3855.0,3854.9,0.4353]
[1761249686086,1.5552,3855.0,3854.9,0.4353]
[1761249686291,4.8712,3855.0,3854.9,0.4353]
[1761249686795,1.5552,3855.0,3854.9,0.4353]
[1761249686973,4.8712,3855.0,3854.9,0.4353]
[1761249687790,1.5552,3855.0,3854.9,0.4353]
[1761249687988,4.8712,3855.0,3854.9,0.4353]
[1761249688174,1.5552,3855.0,3854.9,0.4353]
[1761249688489,3.315,3855.0,3854.9,0.4353]
[1761249688696,0.69764533,3855.7,3854.9,0.4353]
[1761249688996,1.5552,3855.2,3854.9,0.4353]
[1761249689183,3.315,3855.1,3854.9,0.4353]
[1761249689388,1.5552,3855.3,3854.9,0.4353]
[1761249689704,3.314,3855.2,3854.9,0.4353]
[1761249689999,1.5552,3855.3,3855.2,0.2245]
[1761249690209,1.5552,3855.6,3855.2,0.2245]
[1761249690376,1.5552,3855.4,3855.3,0.4287]
[1761249691008,0.69764533,3855.8,3855.3,0.4287]
[1761249691218,0.13544752,3855.9,3855.3,0.4287]
[1761249691219,3.314,3855.7,3855.3,0.4287]
[1761249691389,1.5552,3855.5,3855.3,0.4287]
[1761249691588,4.8692,3855.4,3855.3,0.4287]
[1761249691790,1.6848,3855.4,3855.3,4.2787]
[1761249691996,4.8682,3855.4,3855.3,4.2787]
[1761249692390,4.8682,3855.4,3855.3,3.02253186]
[1761249692391,3.313,3855.4,3855.3,3.02253186]
[1761249692821,3.313,3855.4,3855.3,0.4287]
[1761249696418,0.1296,3855.6,3855.3,0.4287]
[1761249696617,3.311,3855.5,3855.3,0.4287]
[1761249696817,3.311,3855.4,3855.3,0.4287]
[1761249697507,3.311,3855.4,3854.9,0.1316]
[1761249697707,5.9048116,3855.4,3854.9,0.5603]
[1761249697923,6.0344116,3855.4,3854.9,0.5603]
[1761249698118,6.0344116,3855.4,3854.9,0.1316]
[1761249698353,6.37428592,3855.0,3854.9,0.002]
[1761249698561,12.57361125,3855.0,3854.9,0.002]
[1761249698861,11.87596592,3855.0,3854.9,0.002]
[1761249699444,13.82396592,3855.0,3854.9,0.002]
[1761249699650,13.92296592,3855.0,3854.9,0.002]
[1761249699878,14.8531597,3855.0,3854.9,0.002]
[1761249701530,13.92296592,3855.0,3854.9,0.002]
[1761249703535,14.85440239,3855.0,3854.9,0.002]
[1761249703944,13.79336592,3855.0,3854.9,0.002]
[1761249704264,15.18865659,3855.0,3854.9,0.002]
[1761249704429,3.10118291,3854.6,3854.5,0.002]
[1761249704634,11.74863511,3854.6,3854.5,0.002]
[1761249704838,11.84763511,3854.6,3854.5,0.002]
[1761249705378,12.77860562,3854.6,3854.5,0.002]
[1761249705745,11.84763511,3854.6,3854.5,0.002]
[1761249706136,8.06738291,3854.6,3854.5,0.002]
[1761249706581,13.24465236,3854.6,3854.5,0.002]
[1761249706931,3.5012,3854.6,3854.5,0.002]
[1761249707168,0.099,3855.2,3854.5,0.002]
[1761249707169,0.6978454,3855.1,3854.5,0.4307]
[1761249707403,3.315,3855.0,3854.5,0.4307]
[1761249707529,3.316,3854.9,3854.5,0.4307]
[1761249707732,3.316,3854.8,3854.5,0.4307]
[1761249707943,4.8712,3854.7,3854.6,0.32495931]
[1761249708255,3.316,3854.7,3854.6,2.59430291]
[1761249708450,3.316,3854.7,3854.6,0.4287]
[1761249709176,3.316,3854.7,3854.6,3.02300291]
[1761249710776,0.50688,3855.7,3854.6,0.4287]
[1761249710777,0.6978454,3855.7,3854.6,0.4287]
[1761249710978,1.5552,3855.5,3854.7,0.75365923]
[1761249711194,0.001,3855.8,3855.7,0.2245]
[1761249711398,3.317,3855.8,3855.7,0.2245]
[1761249711898,3.317,3855.8,3855.7,0.4287]
[1761249712189,3.317,3855.8,3855.5,0.2245]
[1761249712691,3.317,3855.8,3855.5,3.24684634]
[1761249712867,0.001,3855.8,3855.6,0.32468463]
[1761249713069,0.001,3855.8,3855.6,0.4287]
[1761249713402,3.317,3855.7,3855.5,0.2245]
[1761249713620,3.317,3855.7,3855.2,0.2245]
[1761249713914,3.317,3855.7,3855.3,0.4287]
[1761249714193,0.1296,3855.3,3854.6,0.1296]
[1761249714369,0.50688,3855.5,3854.6,0.4287]
[1761249714370,0.1296,3854.9,3854.6,0.4287]
[1761249714576,3.319,3854.8,3854.6,0.4287]
[1761249715396,3.319,3854.8,3854.4,0.3541]
[1761249715582,3.319,3854.8,3854.4,0.2245]
[1761249715784,0.1296,3854.7,3854.4,0.2245]
[1761249716304,0.1296,3854.7,3854.5,0.4307]
[1761249717365,5.35362381,3855.5,3854.5,3.62245052]
[1761249717366,3.317,3854.6,3854.5,3.62245052]
[1761249717560,3.317,3854.6,3854.5,1.02808031]
[1761249717777,3.317,3854.6,3854.5,3.62245052]
[1761249719294,0.6988454,3855.8,3854.8,2.5941683]
[1761249719513,2.704,3855.7,3855.2,2.59383287]
[1761249719724,0.001,3855.8,3855.2,2.59383287]
[1761249719725,0.001,3855.8,3855.7,2.81926277]
[1761249720181,0.001,3855.8,3855.7,3.27256277]
[1761249720680,0.001,3855.8,3855.7,0.2257]
[1761249720984,0.001,3855.8,3855.2,0.2257]
[1761249721172,1.5562,3855.8,3855.2,0.2257]
[1761249721377,1.5562,3855.8,3855.2,0.679]
[1761249721593,0.001,3855.8,3855.2,0.679]
[1761249721789,1.5562,3855.8,3854.6,0.4533]
[1761249722006,1.5552,3855.5,3854.5,0.002]
[1761249722168,2.59389914,3855.2,3854.5,0.002]
[1761249722441,4.14909243,3855.3,3854.5,0.002]
[1761249722442,2.59401263,3855.1,3854.5,0.4553]
[1761249722708,1.5552,3855.3,3854.5,0.4553]
[1761249722877,3.325,3855.2,3854.5,0.4553]
[1761249723083,1.5552,3855.1,3854.5,0.4553]
[1761249723966,4.14916711,3855.1,3854.5,0.4553]
[1761249724370,1.5552,3855.1,3854.5,3.0496533]
[1761249724921,1.5552,3855.1,3854.5,0.002]
[1761249725125,4.28640291,3854.6,3854.5,0.002]
[1761249725417,8.11928291,3854.6,3854.5,0.002]
[1761249725565,8.22128291,3854.6,3854.5,0.002]
[1761249725995,8.91912831,3854.6,3854.5,0.002]
[1761249726294,8.22128291,3854.6,3854.5,0.002]
[1761249727194,8.91912831,3854.6,3854.5,0.002]
[1761249727365,8.22128291,3854.6,3854.5,0.002]
[1761249728215,8.91912831,3854.6,3854.5,0.002]
[1761249728666,8.22128291,3854.6,3854.5,0.002]
[1761249729165,9.15113795,3854.6,3854.5,0.002]
[1761249729671,8.35088291,3854.6,3854.5,0.002]
[1761249729868,8.35088291,3854.6,3854.1,0.002]
[1761249729869,3.10145215,3854.2,3854.1,0.002]
[1761249730075,17.68477096,3854.2,3854.1,0.002]
[1761249730380,17.68477096,3854.2,3852.4,0.4533]
[1761249730381,2.59562035,3852.7,3852.4,0.4533]
[1761249730578,3.4546,3852.6,3852.4,0.4533]
[1761249730777,5.0098,3852.6,3852.4,0.4533]
[1761249730977,5.0098,3852.6,3852.5,0.679]
[1761249730978,1.6848,3852.6,3852.5,0.679]
[1761249731212,5.0098,3852.6,3852.0,0.3553]
[1761249731501,5.0098,3852.6,3851.8,0.679]
[1761249731502,1.5552,3852.5,3851.8,0.679]
[1761249731689,0.1296,3852.3,3851.9,0.4533]
[1761249731867,3.327,3852.2,3851.9,0.4533]
[1761249732305,3.327,3852.2,3851.1,2.59664858]
[1761249732306,2.06208,3852.1,3851.2,0.2257]
[1761249732809,2.06208,3852.1,3851.3,0.4533]
[1761249733100,1.5552,3851.9,3851.2,0.2257]
[1761249733299,1.5552,3851.9,3850.8,0.4533]
[1761249733518,1.5552,3851.9,3851.0,0.4533]
[1761249733671,4.8852,3851.8,3851.0,0.4533]
[1761249734005,3.33,3851.7,3851.0,0.4533]
[1761249734697,0.1354,3852.2,3851.1,2.59664961]
[1761249734698,3.331,3851.6,3851.1,2.59664961]
[1761249734900,3.331,3851.5,3851.4,2.59642946]
[1761249735108,0.50688,3852.4,3851.3,2.59652078]
[1761249735314,7.98994642,3852.3,3851.3,3.04982078]
[1761249735512,2.59592623,3852.2,3851.4,0.4533]
[1761249735681,5.39408,3852.3,3851.4,0.4533]
[1761249736179,3.332,3852.2,3851.5,2.59639101]
[1761249736406,3.333,3852.1,3851.6,2.59630592]
[1761249736612,3.333,3852.1,3851.7,0.98396059]
[1761249736914,3.333,3852.1,3851.8,0.4533]
[1761249737101,3.332,3852.0,3851.7,0.2257]
[1761249737412,1.5552,3851.9,3851.7,0.2257]
[1761249737617,1.5552,3851.9,3851.7,0.679]
[1761249740022,1.5552,3851.1,3850.2,0.2257]
[1761249740208,1.5552,3851.1,3849.9,0.2257]
[1761249740209,4.15227348,3850.5,3849.9,0.2257]
[1761249740409,4.15227348,3850.5,3849.1,0.2257]
[1761249740410,0.1365,3850.0,3849.1,0.2257]
[1761249740720,0.1365,3850.0,3848.8,0.4563]
[1761249740721,0.1365,3850.0,3848.8,0.003]
[1761249740722,2.59800992,3849.1,3848.8,0.003]
[1761249740923,2.74534492,3848.9,3848.8,0.003]
[1761249741109,0.50688,3848.8,3848.1,0.1]
[1761249741308,9.70337084,3848.2,3848.1,0.1]
[1761249741523,18.13286837,3848.2,3848.1,0.1]
[1761249741690,19.78706837,3848.2,3848.1,0.1]
[1761249742149,19.78706837,3848.2,3846.7,0.003]
[1761249742150,0.50688,3848.0,3846.7,0.003]
[1761249742431,1.7894,3848.1,3846.1,1.39272985]
[1761249742433,9.84087084,3846.8,3846.1,1.39272985]
[1761249742634,9.84087084,3846.8,3843.8,0.78086668]
[1761249742635,2.6012538,3844.3,3843.8,0.78086668]
[1761249742928,2.6012538,3844.3,3842.4,1.95660124]
[1761249742930,4.66340147,3844.2,3842.4,1.95660124]
[1761249743096,2.60247234,3842.5,3842.4,1.95560124]
[1761249743293,1.6914,3842.5,3842.4,1.81969581]
[1761249743506,6.71848,3842.5,3841.3,0.5177]
[1761249743705,2.60282302,3842.0,3841.3,0.5177]
[1761249743905,1.5552,3841.8,3841.3,0.5177]
[1761249744106,0.26754025,3842.5,3841.3,0.5177]
[1761249744107,3.529,3841.7,3841.3,0.5177]
[1761249744400,9.70337084,3843.1,3841.3,0.5177]
[1761249744401,1.5552,3843.1,3841.4,0.4533]
[1761249744605,0.1354,3843.3,3841.4,0.679]
[1761249744808,1.31,3843.0,3841.4,0.679]
[1761249745000,1.31,3843.0,3841.3,0.5177]
[1761249745001,1.5552,3842.8,3841.3,0.5177]
[1761249745205,0.50688,3842.7,3841.3,0.5177]
[1761249745429,0.50688,3842.7,3840.5,2.00441529]
[1761249745430,0.0997,3842.7,3840.6,0.4533]
[1761249745596,3.552,3842.6,3841.1,0.4533]
[1761249745794,0.1001,3844.3,3841.5,9.70337084]
[1761249745993,0.117,3843.6,3841.6,0.97033708]
[1761249746193,0.1398,3844.5,3841.6,1.42363708]
[1761249746194,0.117,3843.5,3841.6,1.42363708]
[1761249746432,0.1398,3844.5,3842.5,2.6024541]
[1761249746433,0.101,3843.4,3842.5,2.6024541]
[1761249746636,0.13586836,3844.2,3842.6,0.7028]
[1761249746637,0.407,3843.3,3842.6,0.7028]
[1761249746937,0.1001,3844.8,3842.7,1.51071708]
[1761249746938,0.588,3843.2,3842.7,1.51071708]
[1761249747120,0.588,3843.2,3843.0,2.60210904]
[1761249747317,0.588,3843.2,3843.1,0.2327]
[1761249747521,0.588,3843.2,3842.6,0.2327]
[1761249747737,0.1016,3844.9,3843.1,0.2327]
[1761249748034,0.1351,3845.0,3843.1,0.2327]
[1761249748035,5.556,3844.8,3843.1,0.2327]
[1761249748205,0.1351,3845.0,3843.2,0.4701]
[1761249748406,0.1351,3845.0,3843.3,1.04061708]
[1761249748752,0.1442,3845.8,3844.5,2.60110937]
[1761249748896,0.608,3845.6,3844.5,2.60110937]
[1761249749228,0.50688,3845.5,3843.7,0.4397]
[1761249749528,0.50688,3845.5,3843.8,0.4397]
[1761249749704,0.50688,3845.5,3843.8,3.01538578]
[1761249749705,0.60588,3845.5,3843.8,3.01538578]
[1761249749901,0.60588,3845.5,3843.8,2.60158578]
[1761249750099,3.61,3845.4,3843.8,0.26015858]
[1761249750301,1.5552,3845.3,3843.3,2.60193063]
[1761249750500,1.7225,3845.3,3844.2,2.60130215]
[1761249750701,1.7225,3845.3,3844.3,2.60121473]
[1761249750935,1.7225,3845.3,3844.0,2.60143469]
[1761249750936,0.50688,3845.2,3843.0,4.15731292]
[1761249751203,0.50688,3845.2,3843.8,2.60156589]
[1761249751430,0.50688,3845.2,3844.1,0.002]
[1761249751632,3.609,3845.1,3844.1,0.002]
[1761249751804,1.5552,3844.9,3844.2,0.4591]
[1761249752011,2.59857965,3848.3,3844.2,0.4591]
[1761249752012,0.1004,3846.5,3844.2,0.4591]
[1761249752217,2.344,3846.4,3844.3,2.6012538]
[1761249752513,2.0504,3846.5,3844.1,0.002]
[1761249752514,0.1304,3845.5,3845.0,0.1304]
[1761249752719,3.608,3845.4,3845.1,2.60070469]
[1761249752940,3.608,3845.4,3845.0,0.8263]
[1761249753267,3.608,3845.4,3844.6,0.2368]
[1761249753426,3.607,3845.3,3844.6,0.2368]
[1761249753757,3.607,3845.2,3844.7,3.06007123]
[1761249753946,3.607,3845.1,3844.8,2.60091552]
[1761249754121,3.607,3845.1,3845.0,2.60078023]
[1761249754736,0.1008,3846.5,3845.0,0.4591]
[1761249754924,0.50688,3846.2,3845.0,0.4591]
[1761249755124,3.607,3846.4,3844.6,0.2368]
[1761249755125,2.70064084,3846.4,3844.6,0.2368]
[1761249755336,0.50688,3846.1,3844.8,2.60090924]
[1761249755550,0.1008,3846.4,3844.8,2.60085238]
[1761249755551,2.06208,3845.9,3844.8,2.60085238]
[1761249755727,1.5552,3845.9,3844.9,0.4591]
[1761249755928,1.5552,3845.9,3844.7,0.4591]
[1761249756333,0.50688,3846.3,3845.8,0.2368]
[1761249756551,0.594,3846.2,3845.8,0.2368]
[1761249756736,1.95,3847.9,3845.2,0.4591]
[1761249756737,0.594,3846.1,3845.2,0.4591]
[1761249756920,0.677,3846.0,3845.5,0.2368]
[1761249757120,1.6563,3847.1,3845.5,0.2368]
[1761249757121,0.743,3845.9,3845.5,0.2368]
[1761249757327,0.743,3845.9,3845.5,3.2963293]
[1761249757569,1.298,3845.8,3845.7,2.60027522]
[1761249757857,1.298,3845.8,3845.7,2.60030683]
[1761249758027,1.298,3845.8,3845.7,3.05940683]
[1761249758362,3.61,3846.0,3845.8,2.60023922]
[1761249758569,3.61,3846.0,3845.5,0.1868]
[1761249758570,2.08575695,3847.4,3846.2,2.59991048]
[1761249758853,1.5552,3847.2,3846.3,2.5998668]
[1761249759039,1.5552,3847.2,3846.1,2.60003582]
[1761249759241,0.1438,3847.5,3846.2,3.0590688]
[1761249759242,3.608,3847.1,3846.2,3.0590688]
[1761249759442,3.608,3847.1,3846.7,2.59960906]
[1761249759757,3.608,3847.1,3847.0,0.2368]
[1761249760200,0.1439,3847.7,3846.4,0.2368]
[1761249760401,0.1439,3847.7,3845.5,2.78721937]
[1761249760402,3.616,3847.1,3846.0,0.2368]
[1761249760565,0.0771438,3846.6,3846.0,2.83685814]
[1761249760764,0.0771438,3846.6,3846.1,2.6000119]
[1761249761002,0.0771438,3846.6,3846.2,2.59995247]
[1761249761297,0.0771438,3846.6,3846.0,0.2368]
[1761249761811,0.0771438,3846.6,3839.6,3.18357426]
[1761249761812,2.59983361,3846.4,3845.0,0.6959]
[1761249762097,3.612,3846.3,3845.0,0.6959]
[1761249762399,3.7607,3846.3,3845.0,0.6959]
[1761249762899,3.612,3846.3,3845.1,0.4591]
[1761249763201,0.1304,3845.7,3845.3,2.60056982]
[1761249763404,3.61,3845.6,3845.2,0.1304]
[1761249763577,3.61,3845.6,3844.9,0.1304]
[1761249763778,0.1304,3845.4,3844.9,0.1304]
[1761249763985,0.1304,3845.4,3844.9,2.73123974]
[1761249764585,3.61,3845.6,3844.6,0.2368]
[1761249764892,0.1304,3844.8,3844.1,0.1324]
[1761249765080,3.606,3844.7,3844.3,2.60123399]
[1761249765297,3.606,3844.7,3844.3,0.4591]
[1761249765500,3.606,3844.7,3844.3,3.06034296]
[1761249765822,3.606,3844.7,3844.3,2.60124296]
[1761249766105,3.606,3844.7,3844.1,0.1324]
[1761249766106,3.606,3844.7,3844.1,2.7337879]
[1761249766301,3.606,3844.7,3844.2,2.60131285]
[1761249766805,3.606,3844.7,3844.3,2.60125135]
[1761249767005,3.606,3844.7,3844.3,3.06035135]
[1761249767411,3.606,3844.7,3844.3,0.4591]
[1761249767576,0.1304,3844.8,3844.4,0.4591]
[1761249767777,3.599,3844.7,3844.5,2.60105872]
[1761249767982,3.599,3844.7,3844.6,2.60105082]
[1761249768393,2.1164,3845.8,3844.6,0.4591]
[1761249768394,0.1664,3845.8,3844.6,0.4591]
[1761249768681,0.1304,3845.2,3844.6,0.5895]
[1761249768902,0.1304,3845.2,3844.7,0.4591]
[1761249769087,0.862,3845.1,3845.0,2.60078023]
[1761249769287,0.862,3845.1,3844.1,0.002]
[1761249769289,3.596,3845.1,3844.1,0.002]
[1761249769476,0.1304,3844.7,3844.1,0.1324]
[1761249769682,0.1304,3844.7,3844.1,0.002]
[1761249769683,0.1383,3844.2,3844.1,0.002]
[1761249769907,3.8657,3844.2,3844.1,0.002]
[1761249770481,0.1304,3844.2,3844.1,0.002]
[1761249770906,3.7254,3844.2,3844.1,0.002]
[1761249771330,3.595,3844.2,3844.1,0.002]
[1761249772594,0.2166,3845.0,3844.1,0.002]
[1761249772783,1.5552,3844.8,3844.1,0.2388]
[1761249773112,0.0998,3845.4,3844.2,2.60132147]
[1761249773314,0.69699466,3845.7,3844.1,0.6979]
[1761249773487,3.598,3845.6,3844.3,2.60118754]
[1761249773816,2.60031888,3845.7,3844.4,2.60116966]
[1761249774114,1.5552,3845.4,3844.4,2.60116966]
[1761249774313,5.1532,3845.5,3844.4,2.6011726]
[1761249774314,3.598,3845.5,3844.4,2.6011726]
[1761249774500,3.597,3845.4,3844.4,2.60112136]
[1761249774701,3.29817828,3845.9,3844.5,0.4591]
[1761249774905,3.2981914,3845.9,3844.7,2.60096975]
[1761249775216,4.29199466,3845.8,3844.9,2.60083362]
[1761249775512,0.69799466,3845.9,3844.5,0.4591]
[1761249775717,3.594,3845.7,3844.5,0.4591]
[1761249775931,3.594,3845.7,3844.1,0.2388]
[1761249776102,3.6949,3845.7,3844.1,0.2388]
[1761249776302,0.1009,3845.7,3844.7,2.60097428]
[1761249776604,0.1009,3845.7,3844.1,0.6979]
[1761249776605,0.69699466,3845.4,3844.1,0.2388]
[1761249776919,1.5552,3845.2,3844.2,2.60129826]
[1761249777126,0.69699466,3845.3,3844.4,2.60117441]
[1761249777303,0.69699466,3845.3,3844.1,3.29926327]
[1761249777304,2.60065749,3845.2,3844.2,2.60131581]
[1761249777517,2.60072981,3845.1,3844.1,0.2388]
[1761249777901,2.70155112,3845.2,3844.1,0.2388]
[1761249778103,0.69699466,3845.3,3844.1,0.2388]
[1761249778418,2.25219466,3845.3,3844.5,2.60106716]
[1761249778606,0.69699466,3845.4,3844.1,0.6979]
[1761249778823,0.69699466,3845.5,3844.2,0.78903124]
[1761249779023,3.587,3845.4,3844.2,0.4591]
[1761249779225,3.587,3845.4,3844.7,2.60096583]
[1761249779427,3.587,3845.4,3844.3,0.4526]
[1761249779632,3.587,3845.4,3844.8,2.60091482]
[1761249779805,3.587,3845.4,3844.6,2.60100318]
[1761249780010,0.69699466,3845.5,3844.4,0.4526]
[1761249780011,3.585,3845.3,3844.4,0.4526]
[1761249780431,3.585,3845.3,3844.4,3.05378414]
[1761249780941,0.69699466,3845.5,3844.5,0.4526]
[1761249781140,3.583,3845.2,3844.5,0.4526]
[1761249781435,2.60086147,3844.9,3844.4,0.1304]
[1761249781647,6.18171589,3845.1,3844.1,0.2388]
[1761249781648,0.1304,3844.5,3844.1,0.2388]
[1761249781806,3.581,3845.1,3844.1,0.2388]
[1761249781807,0.69699466,3845.3,3844.2,3.05392147]
[1761249782006,0.1304,3844.9,3844.4,0.1304]
[1761249782205,6.18164962,3845.2,3844.1,0.2388]
[1761249782206,0.1304,3844.6,3844.1,0.2388]
[1761249782403,3.583,3844.5,3844.2,2.60130874]
[1761249782603,3.583,3844.5,3844.1,0.002]
[1761249782807,2.73172147,3844.2,3844.1,0.002]
[1761249783038,4.66340147,3844.2,3844.1,0.002]
[1761249783239,4.66340147,3844.2,3842.0,0.2215]
[1761249783240,2.60199833,3843.2,3842.0,0.2215]
[1761249783439,2.60199833,3843.2,3841.7,0.4526]
[1761249783440,8.24907833,3843.2,3841.7,0.4526]
[1761249783647,8.24907833,3843.2,3841.6,0.2215]